Workbook

Sheet gyj
A3: 1 | B3: 2 | C3: 3 | D3: 4 | E3: 5 | F3: 6 | G3: 7 | I3: 1 | J3: 2 | K3: 3 | L3: 4 | M3: 5 | N3: 6 | O3: 7
H4: =((SUM(S4:S10))/7) -> 7 | P4: =((SUM(T4:T10))/7) -> 3.285714286 | Q4: =H4*50%+P4*50% -> 5.142857143 | R4: 1 | S4: =CountColor(B4,$A$2)*B$3+CountColor(C4,$A$2)*C$3+CountColor(D4,$A$2)*D$3+CountColor(E4,$A$2)*E$3+CountColor(F4,$A$2)*F$3+CountColor(G4,$A$2)*G$3+CountColor(A4,$A$2)*A$3 -> 7 | T4: =CountColor(J4,$I$2)*J$3+CountColor(K4,$I$2)*K$3+CountColor(L4,$I$2)*L$3+CountColor(M4,$I$2)*M$3+CountColor(N4,$I$2)*N$3+CountColor(O4,$I$2)*O$3+CountColor(I4,$I$2)*I$3 -> 4
R5: 2 | S5: =CountColor(B5,$A$2)*B$3+CountColor(C5,$A$2)*C$3+CountColor(D5,$A$2)*D$3+CountColor(E5,$A$2)*E$3+CountColor(F5,$A$2)*F$3+CountColor(G5,$A$2)*G$3+CountColor(A5,$A$2)*A$3 -> 7 | T5: =CountColor(J5,$I$2)*J$3+CountColor(K5,$I$2)*K$3+CountColor(L5,$I$2)*L$3+CountColor(M5,$I$2)*M$3+CountColor(N5,$I$2)*N$3+CountColor(O5,$I$2)*O$3+CountColor(I5,$I$2)*I$3 -> 4
R6: 6 | S6: =CountColor(B6,$A$2)*B$3+CountColor(C6,$A$2)*C$3+CountColor(D6,$A$2)*D$3+CountColor(E6,$A$2)*E$3+CountColor(F6,$A$2)*F$3+CountColor(G6,$A$2)*G$3+CountColor(A6,$A$2)*A$3 -> 7 | T6: =CountColor(J6,$I$2)*J$3+CountColor(K6,$I$2)*K$3+CountColor(L6,$I$2)*L$3+CountColor(M6,$I$2)*M$3+CountColor(N6,$I$2)*N$3+CountColor(O6,$I$2)*O$3+CountColor(I6,$I$2)*I$3 -> 3
R7: 0 | S7: =CountColor(B7,$A$2)*B$3+CountColor(C7,$A$2)*C$3+CountColor(D7,$A$2)*D$3+CountColor(E7,$A$2)*E$3+CountColor(F7,$A$2)*F$3+CountColor(G7,$A$2)*G$3+CountColor(A7,$A$2)*A$3 -> 7 | T7: =CountColor(J7,$I$2)*J$3+CountColor(K7,$I$2)*K$3+CountColor(L7,$I$2)*L$3+CountColor(M7,$I$2)*M$3+CountColor(N7,$I$2)*N$3+CountColor(O7,$I$2)*O$3+CountColor(I7,$I$2)*I$3 -> 3
R8: 0 | S8: =CountColor(B8,$A$2)*B$3+CountColor(C8,$A$2)*C$3+CountColor(D8,$A$2)*D$3+CountColor(E8,$A$2)*E$3+CountColor(F8,$A$2)*F$3+CountColor(G8,$A$2)*G$3+CountColor(A8,$A$2)*A$3 -> 7 | T8: =CountColor(J8,$I$2)*J$3+CountColor(K8,$I$2)*K$3+CountColor(L8,$I$2)*L$3+CountColor(M8,$I$2)*M$3+CountColor(N8,$I$2)*N$3+CountColor(O8,$I$2)*O$3+CountColor(I8,$I$2)*I$3 -> 3
R9: 3 | S9: =CountColor(B9,$A$2)*B$3+CountColor(C9,$A$2)*C$3+CountColor(D9,$A$2)*D$3+CountColor(E9,$A$2)*E$3+CountColor(F9,$A$2)*F$3+CountColor(G9,$A$2)*G$3+CountColor(A9,$A$2)*A$3 -> 7 | T9: =CountColor(J9,$I$2)*J$3+CountColor(K9,$I$2)*K$3+CountColor(L9,$I$2)*L$3+CountColor(M9,$I$2)*M$3+CountColor(N9,$I$2)*N$3+CountColor(O9,$I$2)*O$3+CountColor(I9,$I$2)*I$3 -> 3
R10: 4 | S10: =CountColor(B10,$A$2)*B$3+CountColor(C10,$A$2)*C$3+CountColor(D10,$A$2)*D$3+CountColor(E10,$A$2)*E$3+CountColor(F10,$A$2)*F$3+CountColor(G10,$A$2)*G$3+CountColor(A10,$A$2)*A$3 -> 7 | T10: =CountColor(J10,$I$2)*J$3+CountColor(K10,$I$2)*K$3+CountColor(L10,$I$2)*L$3+CountColor(M10,$I$2)*M$3+CountColor(N10,$I$2)*N$3+CountColor(O10,$I$2)*O$3+CountColor(I10,$I$2)*I$3 -> 3
H11: =((SUM(S11:S15))/5) -> 6 | P11: =((SUM(T11:T15))/5) -> 3.4 | Q11: =H11*50%+P11*50% -> 4.7 | R11: 96 | S11: =CountColor(B11,$A$2)*B$3+CountColor(C11,$A$2)*C$3+CountColor(D11,$A$2)*D$3+CountColor(E11,$A$2)*E$3+CountColor(F11,$A$2)*F$3+CountColor(G11,$A$2)*G$3+CountColor(A11,$A$2)*A$3 -> 5 | T11: =CountColor(J11,$I$2)*J$3+CountColor(K11,$I$2)*K$3+CountColor(L11,$I$2)*L$3+CountColor(M11,$I$2)*M$3+CountColor(N11,$I$2)*N$3+CountColor(O11,$I$2)*O$3+CountColor(I11,$I$2)*I$3 -> 4
R12: 32 | S12: =CountColor(B12,$A$2)*B$3+CountColor(C12,$A$2)*C$3+CountColor(D12,$A$2)*D$3+CountColor(E12,$A$2)*E$3+CountColor(F12,$A$2)*F$3+CountColor(G12,$A$2)*G$3+CountColor(A12,$A$2)*A$3 -> 7 | T12: =CountColor(J12,$I$2)*J$3+CountColor(K12,$I$2)*K$3+CountColor(L12,$I$2)*L$3+CountColor(M12,$I$2)*M$3+CountColor(N12,$I$2)*N$3+CountColor(O12,$I$2)*O$3+CountColor(I12,$I$2)*I$3 -> 3
R13: 49.75 | S13: =CountColor(B13,$A$2)*B$3+CountColor(C13,$A$2)*C$3+CountColor(D13,$A$2)*D$3+CountColor(E13,$A$2)*E$3+CountColor(F13,$A$2)*F$3+CountColor(G13,$A$2)*G$3+CountColor(A13,$A$2)*A$3 -> 7 | T13: =CountColor(J13,$I$2)*J$3+CountColor(K13,$I$2)*K$3+CountColor(L13,$I$2)*L$3+CountColor(M13,$I$2)*M$3+CountColor(N13,$I$2)*N$3+CountColor(O13,$I$2)*O$3+CountColor(I13,$I$2)*I$3 -> 3
R14: 56.5 | S14: =CountColor(B14,$A$2)*B$3+CountColor(C14,$A$2)*C$3+CountColor(D14,$A$2)*D$3+CountColor(E14,$A$2)*E$3+CountColor(F14,$A$2)*F$3+CountColor(G14,$A$2)*G$3+CountColor(A14,$A$2)*A$3 -> 4 | T14: =CountColor(J14,$I$2)*J$3+CountColor(K14,$I$2)*K$3+CountColor(L14,$I$2)*L$3+CountColor(M14,$I$2)*M$3+CountColor(N14,$I$2)*N$3+CountColor(O14,$I$2)*O$3+CountColor(I14,$I$2)*I$3 -> 3
R15: 63.25 | S15: =CountColor(B15,$A$2)*B$3+CountColor(C15,$A$2)*C$3+CountColor(D15,$A$2)*D$3+CountColor(E15,$A$2)*E$3+CountColor(F15,$A$2)*F$3+CountColor(G15,$A$2)*G$3+CountColor(A15,$A$2)*A$3 -> 7 | T15: =CountColor(J15,$I$2)*J$3+CountColor(K15,$I$2)*K$3+CountColor(L15,$I$2)*L$3+CountColor(M15,$I$2)*M$3+CountColor(N15,$I$2)*N$3+CountColor(O15,$I$2)*O$3+CountColor(I15,$I$2)*I$3 -> 4
H16: =((SUM(S16:S19))/4) -> 5.5 | P16: =((SUM(T16:T19))/4) -> 4.25 | Q16: =H16*50%+P16*50% -> 4.875 | R16: 70 | S16: =CountColor(B16,$A$2)*B$3+CountColor(C16,$A$2)*C$3+CountColor(D16,$A$2)*D$3+CountColor(E16,$A$2)*E$3+CountColor(F16,$A$2)*F$3+CountColor(G16,$A$2)*G$3+CountColor(A16,$A$2)*A$3 -> 7 | T16: =CountColor(J16,$I$2)*J$3+CountColor(K16,$I$2)*K$3+CountColor(L16,$I$2)*L$3+CountColor(M16,$I$2)*M$3+CountColor(N16,$I$2)*N$3+CountColor(O16,$I$2)*O$3+CountColor(I16,$I$2)*I$3 -> 3
R17: 76.75 | S17: =CountColor(B17,$A$2)*B$3+CountColor(C17,$A$2)*C$3+CountColor(D17,$A$2)*D$3+CountColor(E17,$A$2)*E$3+CountColor(F17,$A$2)*F$3+CountColor(G17,$A$2)*G$3+CountColor(A17,$A$2)*A$3 -> 3 | T17: =CountColor(J17,$I$2)*J$3+CountColor(K17,$I$2)*K$3+CountColor(L17,$I$2)*L$3+CountColor(M17,$I$2)*M$3+CountColor(N17,$I$2)*N$3+CountColor(O17,$I$2)*O$3+CountColor(I17,$I$2)*I$3 -> 6
R18: 83.5 | S18: =CountColor(B18,$A$2)*B$3+CountColor(C18,$A$2)*C$3+CountColor(D18,$A$2)*D$3+CountColor(E18,$A$2)*E$3+CountColor(F18,$A$2)*F$3+CountColor(G18,$A$2)*G$3+CountColor(A18,$A$2)*A$3 -> 5 | T18: =CountColor(J18,$I$2)*J$3+CountColor(K18,$I$2)*K$3+CountColor(L18,$I$2)*L$3+CountColor(M18,$I$2)*M$3+CountColor(N18,$I$2)*N$3+CountColor(O18,$I$2)*O$3+CountColor(I18,$I$2)*I$3 -> 4
R19: 90.25 | S19: =CountColor(B19,$A$2)*B$3+CountColor(C19,$A$2)*C$3+CountColor(D19,$A$2)*D$3+CountColor(E19,$A$2)*E$3+CountColor(F19,$A$2)*F$3+CountColor(G19,$A$2)*G$3+CountColor(A19,$A$2)*A$3 -> 7 | T19: =CountColor(J19,$I$2)*J$3+CountColor(K19,$I$2)*K$3+CountColor(L19,$I$2)*L$3+CountColor(M19,$I$2)*M$3+CountColor(N19,$I$2)*N$3+CountColor(O19,$I$2)*O$3+CountColor(I19,$I$2)*I$3 -> 4
H20: =((SUM(S20:S22))/3) -> 5.666666667 | P20: =((SUM(T20:T22))/3) -> 4.666666667 | Q20: =H20*50%+P20*50% -> 5.166666667 | R20: 97 | S20: =CountColor(B20,$A$2)*B$3+CountColor(C20,$A$2)*C$3+CountColor(D20,$A$2)*D$3+CountColor(E20,$A$2)*E$3+CountColor(F20,$A$2)*F$3+CountColor(G20,$A$2)*G$3+CountColor(A20,$A$2)*A$3 -> 5 | T20: =CountColor(J20,$I$2)*J$3+CountColor(K20,$I$2)*K$3+CountColor(L20,$I$2)*L$3+CountColor(M20,$I$2)*M$3+CountColor(N20,$I$2)*N$3+CountColor(O20,$I$2)*O$3+CountColor(I20,$I$2)*I$3 -> 6
R21: 103.75 | S21: =CountColor(B21,$A$2)*B$3+CountColor(C21,$A$2)*C$3+CountColor(D21,$A$2)*D$3+CountColor(E21,$A$2)*E$3+CountColor(F21,$A$2)*F$3+CountColor(G21,$A$2)*G$3+CountColor(A21,$A$2)*A$3 -> 6 | T21: =CountColor(J21,$I$2)*J$3+CountColor(K21,$I$2)*K$3+CountColor(L21,$I$2)*L$3+CountColor(M21,$I$2)*M$3+CountColor(N21,$I$2)*N$3+CountColor(O21,$I$2)*O$3+CountColor(I21,$I$2)*I$3 -> 5
R22: 110.5 | S22: =CountColor(B22,$A$2)*B$3+CountColor(C22,$A$2)*C$3+CountColor(D22,$A$2)*D$3+CountColor(E22,$A$2)*E$3+CountColor(F22,$A$2)*F$3+CountColor(G22,$A$2)*G$3+CountColor(A22,$A$2)*A$3 -> 6 | T22: =CountColor(J22,$I$2)*J$3+CountColor(K22,$I$2)*K$3+CountColor(L22,$I$2)*L$3+CountColor(M22,$I$2)*M$3+CountColor(N22,$I$2)*N$3+CountColor(O22,$I$2)*O$3+CountColor(I22,$I$2)*I$3 -> 3
A23: =IF(S23=19," ","Вы отметили не все индикаторы.") -> Вы отметили не все индикаторы. | H23: =IF(A23=" ",SUM(H4:H22)/(COUNTIF(H4:H22,">0")),0) -> 0 | I23: =IF(T23=19," ","Вы отметили не все индикаторы.") -> Вы отметили не все индикаторы. | P23: =IF(I23=" ",SUM(P4:P22)/(COUNTIF(P4:P22,">0")),0) -> 0 | Q23: =IF(AND(A23=" ",I23=" "),SUM(Q4:Q22)/(COUNTIF(Q4:Q22,">0")),0) -> 0
A39: х | B39: х | C39: х | D39: х | E39: х | F39: х | G39: х | H39: х

Sheet Лист1
A1: =gyj!H23 -> 0 | B1: =gyj!P23 -> 0 | C1: =gyj!Q23 -> 0
